bitfinex-derivatives/quotes_SOLF0:USTF0_20250524
["timestamp","ask_amount","ask_price","bid_price","bid_amount"]
[1748066836288,0.03629658,175.42,175.41,11.98036116]
[1748066838996,0.03629658,175.42,175.41,11.98106141]
[1748066841590,0.03629658,175.42,175.41,11.98126504]
[1748066847098,0.03629658,175.42,175.41,11.97867352]
[1748066848903,0.03629658,175.42,175.41,11.9790223]
[1748066850890,0.03629658,175.42,175.41,11.97918332]
[1748066852499,0.03629658,175.42,175.41,11.97997768]
[1748066855497,0.03629658,175.42,175.41,6.28017768]
[1748066855708,3.40766668,175.42,175.39,7.63e-06]
[1748066855999,9.0714701,175.4,175.39,7.63e-06]
[1748066857604,5.7001,175.4,175.39,7.63e-06]
[1748066858907,5.6999,175.41,175.39,7.63e-06]
[1748066860009,5.7001,175.4,175.39,7.63e-06]
[1748066879626,9.07178318,175.4,175.39,7.63e-06]
[1748066888324,5.702,175.35,175.33,3.61017]
[1748066888527,5.702,175.35,175.34,6.16383585]
[1748066892731,9.07598318,175.27,175.26,5.31431275]
[1748066892923,5.7043,175.27,175.26,5.31431275]
[1748066893730,5.74438145,175.28,175.26,5.31431275]
[1748066894530,0.04038145,175.28,175.26,5.31431275]
[1748066894832,1.8646,175.36,175.25,112.47839353]
[1748066894833,112.44,175.34,175.25,112.47839353]
[1748066895034,112.44,175.34,175.25,112.44]
[1748066895233,112.44,175.34,175.31,5.7028]
[1748066895433,610.41370255,175.37,175.31,5.7028]
[1748066895833,5.702,175.35,175.32,0.03938711]
[1748066896134,0.03819332,175.36,175.32,0.03938711]
[1748066896432,5.7018,175.35,175.32,0.03938711]
[1748066896835,0.03819332,175.36,175.32,0.03938711]
[1748066897336,5.7021,175.34,175.32,0.03938711]
[1748066897534,0.03819332,175.36,175.32,0.03938711]
[1748066898636,5.73979332,175.36,175.32,0.03938711]
[1748066898830,5.73979332,175.36,175.32,5.74198711]
[1748066899036,0.03819332,175.36,175.32,0.03938711]
[1748066899732,5.73959332,175.36,175.32,5.74178711]
[1748066902739,5.7018,175.35,175.32,0.03938711]
[1748066907740,5.7018,175.35,175.32,5.74208711]
[1748066910838,118.17979332,175.36,175.32,5.74198711]
[1748066911045,112.47819332,175.36,175.32,5.74198711]
[1748066912545,5.7018,175.35,175.32,5.74198711]
[1748066915655,9.07458502,175.35,175.32,5.74198711]
[1748066916342,3.37278502,175.35,175.33,5.7024]
[1748066916639,3.37278502,175.35,175.32,0.03938711]
[1748066916838,0.03819332,175.36,175.32,0.03938711]
[1748066917042,112.44,175.42,175.34,3.37278502]
[1748066917238,5.6998,175.41,175.38,5.7005]
[1748066917652,115.81278502,175.42,175.35,3.819]
[1748066917852,121.51238502,175.42,175.38,5.7005]
[1748066918151,121.54852776,175.42,175.38,5.74101917]
[1748066918352,121.54852776,175.42,175.39,5.7004]
[1748066918951,0.03614274,175.42,175.38,0.04051917]
[1748066919256,0.03614274,175.42,175.4,5.6999]
[1748066919952,0.03614274,175.42,175.39,5.7003]
[1748066920344,0.03614274,175.42,175.38,0.04051917]
[1748066920644,0.03614274,175.42,175.4,5.7001]
[1748066920846,0.03614274,175.42,175.38,0.04051917]
[1748066921054,0.03614274,175.42,175.39,5.7004]
[1748066921747,0.03614274,175.42,175.4,5.7001]
[1748066922455,0.03614274,175.42,175.41,5.6998]
[1748066922845,3.9355,175.55,175.39,1.8695]
[1748066922846,5.6976,175.48,175.44,5.6988]
[1748066923048,5.6976,175.48,175.41,112.46]
[1748066923245,5.6976,175.48,175.42,1.9246]
[1748066923857,0.04298271,175.47,175.44,5.6986]
[1748066924750,5.74088271,175.47,175.43,5.73957278]
[1748066924948,0.04298271,175.47,175.43,0.04057278]
[1748066925450,0.04298271,175.47,175.43,7.278e-05]
[1748066925653,5.26409618,175.44,175.34,116.4034]
[1748066925849,112.46,175.43,175.34,116.4034]
[1748066926056,5.26409618,175.41,175.34,3.9434]
[1748066926658,0.03859971,175.39,175.36,0.03760282]
[1748066927555,5.7011,175.37,175.36,0.03760282]
[1748066931958,0.03859971,175.39,175.36,0.03760282]
[1748066933363,5.73919971,175.39,175.36,0.03760282]
[1748066935561,5.73919971,175.39,175.36,5.73900282]
[1748066936365,5.73919971,175.39,175.36,0.03760282]
[1748066937565,5.73919971,175.39,175.36,5.73900282]
[1748066940868,0.03859971,175.39,175.36,0.03760282]
[1748066942367,5.701,175.38,175.36,0.03760282]
[1748066942665,0.03859971,175.39,175.36,0.03760282]
[1748066943865,0.03859971,175.39,175.37,5.7008]
[1748066945670,5.73909971,175.39,175.36,5.73890282]
[1748066946369,5.73909971,175.39,175.37,5.7011]
[1748066947274,0.03859971,175.39,175.37,5.7011]
[1748066947665,0.03859971,175.39,175.36,5.73900282]
[1748066948072,5.73909971,175.39,175.36,5.73900282]
[1748066949674,0.03859971,175.39,175.37,5.701]
[1748066951981,0.03859971,175.39,175.38,5.7008]
[1748066952578,5.6987,175.45,175.36,0.03760282]
[1748066952873,0.46311,175.46,175.36,0.03760282]
[1748066953381,5.699,175.44,175.41,5.6998]
[1748066953585,0.04355372,175.44,175.41,0.04172014]
[1748066954583,0.04355372,175.44,175.41,5.74152014]
[1748066954584,5.74245372,175.44,175.41,5.74152014]
[1748066954987,5.74245372,175.44,175.41,0.04172014]
[1748066955285,5.74245372,175.44,175.41,5.74142014]
[1748066956478,5.6992,175.43,175.41,5.74142014]
[1748066956684,0.04355372,175.44,175.41,0.04172014]
[1748066957182,5.6995,175.42,175.41,0.04172014]
[1748066962485,5.26409618,175.43,175.32,114.3739]
[1748066962675,5.26409618,175.43,175.33,5.7022]
[1748066963284,0.03817827,175.4,175.36,0.03905077]
[1748066963586,112.43817827,175.4,175.36,0.03905077]
[1748066963787,5.7011,175.37,175.36,0.03905077]
[1748066973391,5.7009,175.38,175.36,0.03905077]
[1748066973886,117.70227445,175.4,175.36,5.74025077]
[1748066973887,5.73857827,175.4,175.36,5.74025077]
[1748066974089,0.03817827,175.4,175.36,0.03905077]
[1748066974589,0.03817827,175.4,175.37,5.7008]
[1748066975188,5.73847827,175.4,175.36,5.74035077]
[1748066975486,0.03817827,175.4,175.36,0.03905077]
[1748066975789,0.03817827,175.4,175.36,5.74025077]
[1748066976989,5.73827827,175.4,175.36,5.74025077]
[1748066978995,5.7006,175.39,175.36,5.74025077]
[1748066979189,5.7006,175.39,175.36,0.03905077]
[1748066979995,0.03817827,175.4,175.36,0.03905077]
[1748066980894,5.7006,175.39,175.36,0.03905077]
[1748066981698,0.03817827,175.4,175.36,0.03905077]
[1748066982197,5.7011,175.37,175.36,0.03905077]
[1748066991602,5.7009,175.38,175.36,0.03905077]
[1748066991902,0.03817827,175.4,175.37,5.7011]
[1748066993007,5.73837827,175.4,175.38,5.7008]
[1748066993300,0.03817827,175.4,175.38,5.7008]
[1748066995301,0.03817827,175.4,175.39,5.7004]
[1748067000513,0.03817827,175.4,175.38,5.7006]
[1748067003715,0.03817827,175.4,175.39,5.7004]
[1748067004919,0.03817827,175.4,175.38,5.7007]
[1748067005218,0.03817827,175.4,175.37,112.4]
[1748067005513,0.03817827,175.4,175.36,0.03905077]
[1748067006713,5.701,175.38,175.36,0.03905077]
[1748067009316,5.7011,175.37,175.36,0.03905077]
[1748067011214,5.26409618,175.37,175.3,5.31431275]
[1748067011413,112.4,175.38,175.27,5.31431275]
[1748067011414,5.26409618,175.34,175.27,5.31431275]
[1748067011817,117.66409618,175.34,175.27,5.31431275]
[1748067012213,0.03756393,175.32,175.29,0.04063026]
[1748067012617,0.03756393,175.32,175.29,5.74403026]
[1748067012817,0.03756393,175.32,175.29,0.04063026]
[1748067013923,5.7034,175.3,175.29,0.04063026]
[1748067014125,0.03756393,175.32,175.29,0.04063026]
[1748067014517,5.74056393,175.32,175.29,0.04063026]
[1748067014720,0.03756393,175.32,175.29,0.04063026]
[1748067016628,5.7032,175.31,175.29,0.04063026]
[1748067018327,5.74026393,175.32,175.29,0.04063026]
[1748067021215,5.703,175.31,175.29,0.04063026]
[1748067021831,0.03756393,175.32,175.29,0.04063026]
[1748067022422,0.03756393,175.32,175.31,5.703]
[1748067022821,0.03756393,175.32,175.29,0.04063026]
[1748067023022,0.03756393,175.32,175.3,5.7032]
[1748067023523,0.03756393,175.32,175.29,0.04063026]
[1748067023728,5.74046393,175.32,175.29,5.74433026]
[1748067025629,0.03756393,175.32,175.29,5.74433026]
[1748067027633,5.74026393,175.32,175.29,5.74433026]
[1748067027932,0.03756393,175.32,175.29,5.74433026]
[1748067028123,0.03756393,175.32,175.3,5.7033]
[1748067028734,0.03756393,175.32,175.29,5.74423026]
[1748067030636,5.74036393,175.32,175.29,5.74423026]
[1748067030839,0.03756393,175.32,175.29,0.04063026]
[1748067031639,5.7032,175.31,175.29,0.04063026]
[1748067032337,5.7034,175.3,175.29,0.04063026]
[1748067036939,5.7031,175.31,175.29,0.04063026]
[1748067039344,5.7034,175.3,175.29,0.04063026]
[1748067058540,0.03756393,175.32,175.29,0.04063026]
[1748067059448,0.03756393,175.32,175.3,5.7033]
[1748067059951,5.74046393,175.32,175.29,5.74423026]
[1748067060154,0.03756393,175.32,175.29,0.04063026]
[1748067060654,5.74046393,175.32,175.29,5.74423026]
[1748067061152,0.03756393,175.32,175.3,5.7033]
[1748067061356,0.03756393,175.32,175.29,0.04063026]
[1748067061655,5.74046393,175.32,175.29,5.74423026]
[1748067064759,5.703,175.31,175.29,5.74423026]
[1748067067361,5.703,175.31,175.29,0.04063026]
[1748067067557,5.7034,175.3,175.29,0.04063026]
[1748067077757,5.7034,175.3,175.29,3.026e-05]
[1748067077957,5.7053,175.25,175.22,112.4]
[1748067078162,3.37428368,175.27,175.22,112.4]
[1748067078665,3.37428368,175.27,175.23,5.47077729]
[1748067078961,3.41242021,175.27,175.23,5.51015925]
[1748067079566,5.7053,175.24,175.23,5.51015925]
[1748067079766,5.7053,175.24,175.23,0.03938196]
[1748067081058,5.7053,175.24,175.23,8.196e-05]
[1748067081666,5.7063,175.21,175.2,5.47151116]
[1748067082169,9.08068368,175.21,175.16,112.42]
[1748067082366,3.37428368,175.21,175.16,112.42]
[1748067082666,0.03691991,175.2,175.17,0.04120328]
[1748067083571,0.03691991,175.2,175.18,5.707]
[1748067083766,0.03691991,175.2,175.17,0.04120328]
[1748067084269,3.37428368,175.23,175.17,3.41548696]
[1748067084474,3.37428368,175.21,175.17,0.04120328]
[1748067084662,3.37428368,175.19,175.17,0.04120328]
[1748067084963,3.37428368,175.19,175.13,112.42]
[1748067085164,3.37428368,175.17,175.13,112.42]
[1748067085364,5.7084,175.15,175.14,0.04341613]
[1748067086870,5.708,175.16,175.14,0.04341613]
[1748067089375,5.7082,175.15,175.14,0.04341613]
[1748067098482,0.04017538,175.18,175.14,0.04341613]
[1748067099079,0.04017538,175.18,175.16,5.7077]
[1748067099281,0.04017538,175.18,175.14,0.04341613]
[1748067099585,0.04017538,175.18,175.15,5.7081]
[1748067099782,0.04017538,175.18,175.14,0.04341613]
[1748067100286,0.04017538,175.18,175.16,5.7077]
[1748067101274,0.04017538,175.18,175.15,5.7081]
[1748067101683,5.74747538,175.18,175.15,5.7081]
[1748067104285,0.04017538,175.18,175.15,5.7082]
[1748067104485,0.04017538,175.18,175.14,0.04341613]
[1748067105075,0.04017538,175.18,175.16,5.7076]
[1748067105576,0.04017538,175.18,175.17,5.7076]
[1748067106483,0.04017538,175.18,175.14,112.88341613]
[1748067106484,112.84,175.25,175.21,5.7063]
[1748067106681,112.84,175.25,175.14,112.84]
[1748067107485,0.04000888,175.21,175.19,5.7067]
[1748067109981,0.04000888,175.21,175.2,5.7066]
[1748067110788,0.04000888,175.21,175.19,5.7069]
[1748067119694,0.04000888,175.21,175.2,5.7066]
[1748067120686,0.04000888,175.21,175.19,5.7067]
[1748067120991,0.04000888,175.21,175.18,112.85663484]
[1748067121294,0.04000888,175.21,175.2,5.7066]
[1748067121493,0.04000888,175.21,175.18,114.76463484]
[1748067122697,0.04000888,175.21,175.19,5.7067]
[1748067131505,0.04000888,175.21,175.2,5.7066]
[1748067141015,0.04000888,175.21,175.18,223.18463484]
[1748067142010,0.04000888,175.21,175.18,228.89183484]
[1748067142813,0.04000888,175.21,175.19,5.7069]
[1748067143314,0.04000888,175.21,175.2,5.7066]
[1748067143515,0.49942,175.27,175.2,3.37692366]
[1748067144212,0.49942,175.27,175.25,5.7048]
[1748067144413,0.49942,175.27,175.22,115.83692366]
[1748067144612,0.0411862,175.26,175.23,0.04104652]
[1748067144815,0.0411862,175.26,175.24,108.42]
[1748067145216,0.0411862,175.26,175.25,5.705]
[1748067147313,0.0411862,175.26,175.24,114.1252]
[1748067147515,0.0411862,175.26,175.24,108.42]
[1748067147718,0.0411862,175.26,175.23,0.04104652]
[1748067147922,0.0411862,175.26,175.23,112.48104652]
[1748067148322,5.7053,175.25,175.23,112.48104652]
[1748067149024,5.7053,175.24,175.23,0.04104652]
[1748067157732,5.7051,175.25,175.23,0.04104652]
[1748067158424,0.0411862,175.26,175.23,5.74654652]
[1748067158629,0.0411862,175.26,175.23,0.04104652]
[1748067159429,0.0411862,175.26,175.24,5.7051]
[1748067160929,0.0411862,175.26,175.23,5.74654652]
[1748067161131,5.7459862,175.26,175.23,5.74654652]
[1748067161427,0.0411862,175.26,175.23,0.04104652]
[1748067161930,5.7052,175.25,175.23,0.04104652]
[1748067163032,5.7459862,175.26,175.23,0.04104652]
[1748067163424,0.0411862,175.26,175.23,0.04104652]
[1748067164332,0.0411862,175.26,175.24,5.7053]
[1748067165323,0.0411862,175.26,175.25,5.705]
[1748067166828,0.49942,175.27,175.26,5.7047]
[1748067167032,1.9406,175.35,175.25,112.44]
[1748067167933,0.03751899,175.32,175.29,5.7036]
[1748067168732,5.7031,175.31,175.28,5.74674936]
[1748067168933,0.03751899,175.32,175.28,0.04284936]
[1748067169637,5.7036,175.3,175.28,0.04284936]
[1748067171932,5.7037,175.29,175.28,0.04284936]
[1748067172438,5.7035,175.3,175.28,0.04284936]
[1748067172935,0.03751899,175.32,175.28,0.04284936]
[1748067173238,5.7037,175.29,175.28,0.04284936]
[1748067175645,5.7034,175.3,175.28,0.04284936]
[1748067176444,0.03751899,175.32,175.28,0.04284936]
[1748067177242,5.7036,175.3,175.28,0.04284936]
[1748067180845,5.7037,175.29,175.28,0.04284936]
[1748067181648,0.03751899,175.32,175.28,0.04284936]
[1748067181649,5.7034,175.3,175.28,0.04284936]
[1748067182052,0.03751899,175.32,175.28,0.04284936]
[1748067182247,5.7037,175.29,175.28,0.04284936]
[1748067182451,5.27303753,175.29,175.21,112.4]
[1748067182753,5.27303753,175.29,175.21,118.1062]
[1748067182943,117.67303753,175.29,175.21,118.1062]
[1748067183450,0.03987702,175.27,175.23,0.04275014]
[1748067184452,5.7053,175.24,175.23,0.04275014]
[1748067193542,5.7053,175.24,175.23,5.014e-05]
[1748067194457,5.7071,175.19,175.15,112.44]
[1748067194652,5.7071,175.19,175.15,118.148]
[1748067195255,5.7071,175.19,175.15,112.48146153]
[1748067195256,5.7075,175.18,175.15,112.48146153]
[1748067195454,0.03645996,175.19,175.15,0.04146153]
[1748067197254,5.7079,175.16,175.15,0.04146153]
[1748067197451,0.03645996,175.19,175.15,0.04146153]
[1748067197953,5.7073,175.18,175.15,0.04146153]
[1748067198757,5.7076,175.17,175.15,0.04146153]
[1748067199156,0.03645996,175.19,175.15,0.04146153]
[1748067199358,5.7075,175.18,175.15,0.04146153]
[1748067199555,0.03645996,175.19,175.15,0.04146153]
[1748067201048,5.7079,175.16,175.15,0.04146153]
[1748067205258,5.7092,175.13,175.07,2.0196]
[1748067205556,117.73303753,175.17,175.07,2.0196]
[1748067205759,5.7086,175.14,175.07,2.0196]
[1748067205960,112.46,175.17,175.07,2.0196]
[1748067206158,0.04217966,175.14,175.12,5.709]
[1748067207653,0.04217966,175.14,175.13,5.7089]
[1748067229772,0.04217966,175.14,175.13,9.0872956]
[1748067232379,0.04217966,175.14,175.13,11.0773956]
[1748067233483,0.04217966,175.14,175.13,16.53663171]
[1748067234686,0.04217966,175.14,175.13,11.0773956]
[1748067235884,0.04217966,175.14,175.13,16.53663171]
[1748067237289,7.966e-05,175.14,175.13,16.53663171]
[1748067237583,3.3783956,175.23,175.2,5.7065]
[1748067238582,3.41545782,175.23,175.2,5.74582382]
[1748067239674,0.03706222,175.23,175.21,5.7062]
[1748067240481,0.03706222,175.23,175.22,5.706]
[1748067248184,0.03706222,175.23,175.21,5.7062]
[1748067250581,0.03706222,175.23,175.22,5.706]
[1748067252889,5.7063,175.21,175.2,0.03932382]
[1748067254088,5.7074,175.18,175.13,114.4101]
[1748067254281,5.28062685,175.22,175.13,112.42]
[1748067254585,117.70062685,175.22,175.13,112.42]
[1748067254888,5.7077,175.17,175.14,5.7084]
[1748067255284,5.74725889,175.17,175.14,5.74945621]
[1748067255685,5.74725889,175.17,175.15,5.7082]
[1748067257193,5.74725889,175.17,175.14,0.04105621]
[1748067257194,5.74725889,175.17,175.14,5.74965621]
[1748067257699,5.7079,175.16,175.14,0.04105621]
[1748067260102,5.7082,175.15,175.14,0.04105621]
[1748067261008,5.7082,175.16,175.14,0.04105621]
[1748067261701,5.74725889,175.17,175.14,5.74965621]
[1748067262808,5.74725889,175.17,175.14,0.04105621]
[1748067263305,5.7079,175.16,175.14,0.04105621]
[1748067264908,5.74725889,175.17,175.14,0.04105621]
[1748067265108,5.74725889,175.17,175.14,5.74955621]
[1748067265314,0.03955889,175.17,175.14,0.04105621]
[1748067265806,0.03955889,175.17,175.14,5.74955621]
[1748067267309,5.74715889,175.17,175.14,5.74955621]
[1748067267715,0.03955889,175.17,175.14,5.74955621]
[1748067269616,9.12706222,175.17,175.14,5.74955621]
[1748067272018,9.12706222,175.17,175.14,0.04105621]
[1748067274217,5.708,175.16,175.14,0.04105621]
[1748067277122,9.12716222,175.17,175.14,0.04105621]
[1748067278416,3.41946222,175.17,175.14,5.74955621]
[1748067278611,0.03955889,175.17,175.14,0.04105621]
[1748067279223,0.03955889,175.17,175.15,5.708]
[1748067279918,0.03955889,175.17,175.14,5.74945621]
[1748067285921,5.74715889,175.17,175.14,5.74945621]
[1748067295735,0.03955889,175.17,175.15,5.7082]
[1748067296236,5.74715889,175.17,175.14,5.74945621]
[1748067298237,5.7079,175.16,175.14,0.04105621]
[1748067299032,9.08802929,175.16,175.14,0.04105621]
[1748067299539,5.7082,175.15,175.14,0.04105621]
[1748067300937,3.38012929,175.16,175.14,0.04105621]
[1748067301532,3.38012929,175.16,175.15,5.7082]
[1748067301734,3.38012929,175.16,175.14,0.04105621]
[1748067302139,3.38012929,175.16,175.14,5.74955621]
[1748067302538,0.03955889,175.17,175.14,0.04105621]
[1748067303231,0.03955889,175.17,175.15,5.7081]
[1748067303433,0.03955889,175.17,175.14,0.04105621]
[1748067303932,0.03955889,175.17,175.15,5.708]
[1748067304737,0.03955889,175.17,175.14,5.74955621]
[1748067304935,3.38012929,175.16,175.14,0.04105621]
[1748067306343,9.08812929,175.16,175.14,0.04105621]
[1748067306741,3.38012929,175.16,175.14,0.04105621]
[1748067307242,9.08812929,175.16,175.14,0.04105621]
[1748067307440,3.38012929,175.16,175.14,0.04105621]
[1748067308541,5.7082,175.15,175.14,0.04105621]
[1748067309958,115.76012929,175.16,175.08,5.31431275]
[1748067310247,3.38012929,175.12,175.09,5.48907014]
[1748067310452,3.38012929,175.12,175.09,11.19917014]
[1748067310640,9.08962929,175.12,175.09,5.48907014]
[1748067310949,3.42269962,175.12,175.09,11.24116568]
[1748067311750,3.42269962,175.12,175.09,5.53126568]
[1748067312046,3.42269962,175.12,175.09,0.04219554]
[1748067312047,9.13219962,175.12,175.09,0.04219554]
[1748067312253,3.42269962,175.12,175.1,5.7098]
[1748067312652,3.42269962,175.12,175.09,0.04219554]
[1748067312847,0.04257033,175.12,175.11,5.7095]
[1748067317457,0.04257033,175.12,175.1,5.7098]
[1748067319148,0.04257033,175.12,175.09,0.04219554]
[1748067319352,3.42269962,175.12,175.09,0.04219554]
[1748067319953,9.13199962,175.12,175.09,0.04219554]
[1748067320854,5.7097,175.11,175.09,0.04219554]
[1748067321158,3.42269962,175.12,175.09,0.04219554]
[1748067322156,5.7099,175.1,175.09,0.04219554]
[1748067322657,9.08982929,175.11,175.09,0.04219554]
[1748067325648,5.75187033,175.12,175.09,0.04219554]
[1748067325943,3.38012929,175.11,175.09,0.04219554]
[1748067326146,9.08972929,175.11,175.09,0.04219554]
[1748067328152,5.7099,175.1,175.09,0.04219554]
[1748067329551,9.08982929,175.11,175.09,0.04219554]
[1748067330058,3.38012929,175.11,175.09,0.04219554]
[1748067330360,5.7099,175.1,175.09,0.04219554]
[1748067331455,5.7112,175.06,175.05,5.47282959]
[1748067331756,3.38469554,175.06,175.01,5.31431275]
[1748067331947,3.38546518,175.02,175.01,5.31431275]
[1748067332151,9.09796518,175.02,175.01,5.31431275]
[1748067332450,3.38546518,175.02,175.01,5.31431275]
[1748067332654,3.38546518,175.02,175.0,0.04279489]
[1748067332863,9.09816518,175.02,175.0,0.04279489]
[1748067334364,5.7128,175.01,175.0,0.04279489]
[1748067334862,9.09806518,175.02,175.0,0.04279489]
[1748067335755,5.7126,175.02,175.0,0.04279489]
[1748067337366,0.04175166,175.03,175.0,0.04279489]
[1748067338065,5.7126,175.02,175.0,0.04279489]
[1748067338268,0.04175166,175.03,175.0,0.04279489]
[1748067338766,5.7127,175.02,175.0,0.04279489]
[1748067338958,0.04175166,175.03,175.0,0.04279489]
[1748067339765,5.7128,175.01,175.0,0.04279489]
[1748067346169,5.7144,174.97,174.94,5.7149]
[1748067346372,5.28973372,174.99,174.91,112.44]
[1748067346564,117.72973372,174.99,174.88,118.4222]
[1748067347073,5.7153,174.94,174.88,118.4222]
[1748067347272,0.04205458,174.93,174.89,0.04328488]
[1748067347477,5.75745458,174.93,174.9,5.7162]
[1748067347671,0.04205458,174.93,174.9,5.7162]
[1748067348370,0.04205458,174.93,174.91,5.7159]
[1748067349074,0.04205458,174.93,174.92,5.7158]
[1748067349375,0.04205458,174.93,174.89,0.04328488]
[1748067349769,0.04205458,174.93,174.9,5.7164]
[1748067350479,5.75755458,174.93,174.9,5.7164]
[1748067351078,0.04205458,174.93,174.9,5.7164]
[1748067351580,0.04205458,174.93,174.91,5.716]
[1748067352869,0.04205458,174.93,174.92,5.7158]
[1748067353575,0.04205458,174.93,174.91,5.7161]
[1748067355084,0.04205458,174.93,174.9,5.7163]
[1748067355270,0.04205458,174.93,174.89,0.04328488]
[1748067356580,0.04205458,174.93,174.89,5.75998488]
[1748067356581,5.7157,174.92,174.89,5.75998488]
[1748067356880,0.04205458,174.93,174.89,0.04328488]
[1748067357085,5.7164,174.9,174.89,0.04328488]
[1748067360777,5.3317883,174.93,174.89,0.04328488]
[1748067362189,5.7163,174.91,174.89,0.04328488]
[1748067362988,5.3317883,174.93,174.89,0.04328488]
[1748067363190,0.04205458,174.93,174.89,0.04328488]
[1748067363694,0.04205458,174.93,174.91,5.7158]
[1748067364089,0.04205458,174.93,174.92,5.7157]
[1748067366083,2.0323,175.02,174.92,113.04]
[1748067366386,5.7129,175.01,174.92,113.04]
[1748067366599,118.32973372,175.04,174.93,1.9669]
[1748067366991,118.32973372,175.04,174.95,5.7147]
[1748067367184,0.04296433,175.01,174.98,0.04218444]
[1748067367989,5.33269805,175.01,174.98,0.04218444]
[1748067368189,5.7148,174.95,174.9,113.02]
[1748067368387,113.02,175.0,174.9,113.02]
[1748067368886,5.7141,174.97,174.92,5.7154]
[1748067369082,0.04199421,174.96,174.93,0.04015373]
[1748067369390,5.75649421,174.96,174.93,0.04015373]
[1748067369790,0.04199421,174.96,174.93,0.04015373]
[1748067369995,5.7151,174.95,174.93,0.04015373]
[1748067370193,0.04199421,174.96,174.93,0.04015373]
[1748067370493,0.04199421,174.96,174.93,5.75535373]
[1748067371895,0.04199421,174.96,174.94,5.7151]
[1748067372096,0.04199421,174.96,174.93,0.04015373]
[1748067372496,0.04199421,174.96,174.93,5.75535373]
[1748067373694,5.75659421,174.96,174.93,0.04015373]
[1748067374795,0.04199421,174.96,174.93,5.75555373]
[1748067375398,5.75639421,174.96,174.93,5.75555373]
[1748067377997,0.04199421,174.96,174.93,5.75555373]
[1748067378899,0.04199421,174.96,174.94,5.715]
[1748067380699,0.04199421,174.96,174.93,0.04015373]
[1748067380896,118.30973372,174.95,174.93,0.04015373]
[1748067381100,118.30973372,174.95,174.88,1.8892]
[1748067381300,5.7163,174.91,174.88,1.8892]
[1748067382001,5.75628377,174.91,174.88,1.92485117]
[1748067382302,5.75628377,174.91,174.88,7.64185117]
[1748067383695,0.03998377,174.91,174.88,1.92485117]
[1748067384394,0.03998377,174.91,174.89,5.7165]
[1748067384595,0.03998377,174.91,174.88,1.92485117]
[1748067384905,0.03998377,174.91,174.9,5.7164]
[1748067387300,0.03998377,174.91,174.89,5.7166]
[1748067387507,0.03998377,174.91,174.88,1.92485117]
[1748067388608,0.03998377,174.91,174.9,5.7164]
[1748067390014,0.03998377,174.91,174.89,5.7166]
[1748067391915,0.03998377,174.91,174.88,1.92485117]
[1748067392518,5.75618377,174.91,174.88,1.92485117]
[1748067393716,5.7167,174.89,174.88,0.03565117]
[1748067393912,0.03998377,174.91,174.88,0.03565117]
[1748067394515,5.75628377,174.91,174.88,0.03565117]
[1748067396119,0.03998377,174.91,174.89,5.7167]
[1748067396512,0.03998377,174.91,174.88,0.03565117]
[1748067396708,0.03998377,174.91,174.88,5.75255117]
[1748067399023,5.75608377,174.91,174.88,5.75255117]
[1748067399725,5.7166,174.9,174.88,0.03565117]
[1748067400022,0.03998377,174.91,174.88,0.03565117]
[1748067400420,5.75618377,174.91,174.88,0.03565117]
[1748067401320,0.03998377,174.91,174.88,0.03565117]
[1748067402223,5.75608377,174.91,174.88,5.75255117]
[1748067405227,5.7165,174.9,174.88,0.03565117]
[1748067405616,0.03998377,174.91,174.88,0.03565117]
[1748067405816,5.75628377,174.91,174.88,0.03565117]
[1748067406726,5.7165,174.9,174.88,0.03565117]
[1748067407132,0.03998377,174.91,174.88,0.03565117]
[1748067407319,5.7164,174.9,174.88,0.03565117]
[1748067407525,118.65866595,174.91,174.88,5.117e-05]
[1748067407827,5.7177,174.86,174.85,5.43223836]
[1748067408328,5.29980763,174.89,174.85,5.43223836]
[1748067408524,113.32,174.91,174.85,5.43223836]
[1748067408716,0.03763907,174.9,174.82,5.43223836]
[1748067408920,0.03763907,174.9,174.83,3.9486]
[1748067409221,5.7169,174.89,174.85,5.7177]
[1748067409424,5.7169,174.89,174.83,3.9486]
[1748067409616,0.03763907,174.9,174.83,3.9486]
[1748067409829,0.03763907,174.9,174.83,5.8321]
[1748067410226,0.03763907,174.9,174.84,5.43223836]
[1748067410521,5.75423907,174.9,174.86,5.7174]
[1748067412532,5.75423907,174.9,174.87,5.7174]
[1748067412730,0.03763907,174.9,174.84,5.43223836]
[1748067413027,0.03763907,174.9,174.88,5.7168]
[1748067413227,0.03763907,174.9,174.84,118.67223836]
[1748067413526,5.75403907,174.9,174.84,118.67223836]
[1748067413728,5.75403907,174.9,174.87,5.7174]
[1748067414330,5.7168,174.89,174.86,5.7176]
[1748067414629,0.03763907,174.9,174.85,5.43223836]